fUSD/lending_fUSD_20250320
["ID","MTS","AMOUNT","RATE_DAILY","PERIOD"]
[356424331,1742433052096,-619.15,0.00027884,2]
[356424332,1742433052106,-500.0,0.00027884,2]
[356424333,1742433052117,-620.2,0.00027884,2]
[356424334,1742433052128,-877.76,0.00027884,2]
[356424335,1742433052138,-500.0,0.00027884,2]
[356424336,1742433052148,-1536.59,0.00027884,2]
[356424337,1742433052160,-250.31644617,0.00027884,2]
[356424338,1742433052170,-500.0,0.00027884,2]
[356424339,1742433052180,-570.12,0.00027884,2]
[356424340,1742433052190,-610.55,0.00027884,2]
[356424341,1742433052200,-501.27,0.00027884,2]
[356424342,1742433052210,-737.17,0.00027884,2]
[356424343,1742433052219,-500.0,0.00027884,2]
[356424344,1742433052229,-500.0,0.00027884,2]
[356424345,1742433052239,-663.5,0.00027884,2]
[356424346,1742433052249,-500.0,0.00027884,2]
[356424347,1742433052258,-151.80044,0.00027888,7]
[356424348,1742433052267,-536.58215671,0.000279,4]
[356424349,1742433052276,-7178.77369786,0.00027919,2]
[356424350,1742433052286,-200.23772963,0.00027925,2]
[356424351,1742433052295,-14357.5473957,0.00027927,2]
[356424352,1742433052306,-71787.7369786,0.00027928,2]
[356424353,1742433052316,-16450.0217671,0.00027928,2]
[356424354,1742433052325,-50251.415885,0.00027929,2]
[356424355,1742433052335,-57575.0761847,0.00027929,2]
[356424356,1742433052344,-7178.77369786,0.0002793,2]
[356424357,1742433052353,-500.0,0.00027936,2]
[356424358,1742433052363,-500.0,0.00027936,2]
[356424359,1742433052373,-500.0,0.00027936,2]
[356424360,1742433052382,-500.0,0.00027936,2]
[356424361,1742433052392,-588.78,0.00027936,2]
[356424362,1742433052401,-602.89,0.00027936,2]
[356424363,1742433052410,-821.88,0.00027936,2]
[356424364,1742433052420,-912.48,0.00027936,2]
[356424365,1742433052431,-500.0,0.00027936,2]
[356424366,1742433052441,-500.0,0.00027936,2]
[356424367,1742433052450,-500.0,0.00027936,2]
[356424368,1742433052459,-531.02,0.00027936,2]
[356424369,1742433052469,-500.0,0.00027936,2]
[356424370,1742433052479,-500.0,0.00027936,2]
[356424371,1742433052489,-500.0,0.00027936,2]
[356424372,1742433052498,-612.72,0.00027936,2]
[356424373,1742433052507,-500.0,0.00027936,2]
[356424374,1742433052517,-506.59,0.00027936,2]
[356424375,1742433052526,-500.0,0.00027936,2]
[356424376,1742433052536,-500.0,0.00027936,2]
[356424377,1742433052545,-500.0,0.00027936,2]
[356424378,1742433052555,-500.0,0.00027936,2]
[356424379,1742433052565,-500.0,0.00027936,2]
[356424380,1742433052574,-737.95,0.00027936,2]
[356424381,1742433052583,-500.0,0.00027936,2]
[356424382,1742433052592,-500.0,0.00027936,2]
[356424383,1742433052602,-500.0,0.00027936,2]
[356424384,1742433052612,-587.51,0.00027936,2]
[356424385,1742433052621,-2040.6,0.00027936,2]
[356424386,1742433052630,-813.9,0.00027936,2]
[356424387,1742433052640,-707.59,0.00027937,2]
[356424388,1742433052650,-536.84,0.00027937,2]
[356424389,1742433052660,-1069.410702,0.00027937,2]
[356424390,1742433052669,-500.0,0.00027937,2]
[356424391,1742433052679,-500.0,0.00027937,2]
[356424392,1742433052689,-638.25,0.00027937,2]
[356424393,1742433052698,-874.150545,0.00027937,2]
[356424394,1742433052708,-571.77,0.00027937,2]
[356424395,1742433052718,-584.31,0.00027937,2]
[356424396,1742433052727,-500.0,0.00027937,2]
[356424397,1742433052737,-632.1127105,0.00027937,2]
[356424398,1742433052746,-599.86,0.00027937,2]
[356424399,1742433052756,-500.0,0.00027937,2]
[356424400,1742433052765,-500.0,0.00027937,2]
[356424401,1742433052775,-500.0,0.00027937,2]
[356424402,1742433052785,-500.0,0.00027937,2]
[356424403,1742433052794,-500.0,0.00027937,2]
[356424404,1742433052803,-500.0,0.00027937,2]
[356424405,1742433052812,-911.02,0.00027937,2]
[356424406,1742433052822,-500.0,0.00027937,2]
[356424407,1742433052831,-528.65,0.00027937,2]
[356424408,1742433052841,-714.65,0.00027937,2]
[356424409,1742433052849,-773.09,0.00027937,2]
[356424410,1742433052859,-1119.82,0.00027937,2]
[356424411,1742433052868,-571.88,0.00027937,2]
[356424412,1742433052878,-813.48,0.00027937,2]
[356424413,1742433052887,-500.0,0.00027937,2]
[356424414,1742433052897,-837.11,0.00027937,2]
[356424415,1742433052906,-788.34,0.00027937,2]
[356424416,1742433052916,-500.0,0.00027937,2]
[356424417,1742433052925,-500.0,0.00027937,2]
[356424418,1742433052935,-512.61,0.00027937,2]
[356424419,1742433052945,-839.09,0.00027937,2]
[356424420,1742433052954,-500.0,0.00027937,2]
[356424421,1742433052964,-500.0,0.00027937,2]
[356424422,1742433052974,-500.0,0.00027937,2]
[356424423,1742433052983,-500.0,0.00027937,2]
[356424424,1742433052993,-500.0,0.00027938,2]
[356424425,1742433053003,-500.0,0.00027938,2]
[356424426,1742433053013,-500.0,0.00027938,2]
[356424427,1742433053023,-594.28471383,0.00027938,2]
[356424428,1742433053034,-426.88989202,0.00027938,2]
[356424429,1742433053046,-500.0,0.00027938,2]
[356424430,1742433053056,-500.0,0.00027938,2]
[356424431,1742433053066,-500.0,0.00027938,2]
[356424432,1742433053082,-607.13,0.00027938,2]
[356424433,1742433053095,-500.0,0.00027938,2]
[356424434,1742433053105,-500.0,0.00027938,2]
[356424435,1742433053115,-500.0,0.00027938,2]
[356424436,1742433053125,-500.0,0.00027938,2]
[356424437,1742433053134,-500.0,0.00027938,2]
[356424438,1742433053143,-439.64864858,0.00027938,2]
[356424439,1742433053153,-500.0,0.00027938,2]
[356424440,1742433053164,-500.0,0.00027938,2]
[356424441,1742433053174,-500.0,0.00027938,2]
[356424442,1742433053183,-500.0,0.00027938,2]
[356424443,1742433053193,-500.0,0.00027938,2]
[356424444,1742433053203,-500.0,0.00027938,2]
[356424445,1742433053212,-500.0,0.00027938,2]
[356424446,1742433053221,-479.22713222,0.00027938,2]
[356424447,1742433053231,-500.0,0.00027938,2]
[356424448,1742433053240,-500.0,0.00027938,2]
[356424449,1742433053249,-273.89676401,0.00027938,2]
[356424450,1742433053259,-500.0,0.00027938,2]
[356424451,1742433053268,-500.0,0.00027938,2]
[356424452,1742433053278,-500.0,0.00027938,2]
[356424453,1742433053287,-533.26062565,0.00027938,2]
[356424454,1742433053297,-500.0,0.00027938,2]
[356424455,1742433053306,-500.0,0.00027938,2]
[356424456,1742433053315,-500.0,0.00027938,2]
[356424457,1742433053325,-500.0,0.00027938,2]
[356424458,1742433053335,-500.0,0.00027938,2]
[356424459,1742433053345,-550.51,0.00027938,2]
[356424460,1742433053355,-500.0,0.00027938,2]
[356424461,1742433053364,-500.0,0.00027938,2]
[356424462,1742433053374,-500.0,0.00027938,2]
[356424463,1742433053384,-500.0,0.00027938,2]
[356424464,1742433053394,-1382.62,0.00027938,2]
[356424465,1742433053404,-791.57,0.00027938,2]
[356424466,1742433053414,-500.0,0.00027938,2]
[356424467,1742433053424,-532.8806485,0.00027938,2]
[356424468,1742433053435,-500.0,0.00027938,2]
[356424469,1742433053445,-949.46,0.00027938,2]
[356424470,1742433053456,-827.9,0.00027938,2]
[356424471,1742433053466,-500.0,0.00027938,2]
[356424472,1742433053475,-500.0,0.00027938,2]
[356424473,1742433053485,-500.0,0.00027938,2]
[356424474,1742433053495,-500.0,0.00027938,2]
[356424475,1742433053505,-500.0,0.00027938,2]
[356424476,1742433053515,-383.07024313,0.00027938,2]
[356424477,1742433053525,-500.0,0.00027938,2]
[356424478,1742433053535,-500.0,0.00027938,2]
[356424479,1742433053544,-500.0,0.00027938,2]
[356424480,1742433053554,-500.0,0.00027938,2]
[356424481,1742433053564,-500.0,0.00027938,2]
[356424482,1742433053574,-883.18,0.00027938,2]
[356424483,1742433053584,-451.85386831,0.00027938,2]
[356424484,1742433053875,-48.14613169,0.00027938,2]
[356424485,1742433053885,-500.0,0.00027938,2]
[356424486,1742433053895,-500.0,0.00027938,2]
[356424487,1742433053904,-500.0,0.00027938,2]
[356424488,1742433053913,-500.0,0.00027938,2]
[356424489,1742433053922,-500.0,0.00027938,2]
[356424490,1742433053931,-500.0,0.00027938,2]
[356424491,1742433053941,-500.0,0.00027938,2]
[356424492,1742433053949,-500.0,0.00027938,2]
[356424493,1742433053958,-500.0,0.00027938,2]
[356424494,1742433053968,-500.0,0.00027938,2]
[356424495,1742433053977,-830.05,0.00027938,2]
[356424496,1742433053987,-500.0,0.00027938,2]
[356424497,1742433053996,-775.58,0.00027938,2]
[356424498,1742433054005,-559.78,0.00027938,2]
[356424499,1742433054014,-500.0,0.00027938,2]
[356424500,1742433054023,-842.24,0.00027938,2]
[356424501,1742433054033,-500.0,0.00027938,2]
[356424502,1742433054042,-500.0,0.00027938,2]
[356424503,1742433054051,-500.0,0.00027938,2]
[356424504,1742433054060,-502.04,0.00027938,2]
[356424505,1742433054070,-500.0,0.00027938,2]
[356424506,1742433054081,-500.0,0.00027938,2]
[356424507,1742433054088,-500.0,0.00027938,2]
[356424508,1742433054097,-1078.94,0.00027938,2]
[356424509,1742433054106,-202.90885191,0.00027938,2]
[356424510,1742433054113,-500.0,0.00027938,2]
[356424511,1742433054121,-503.44,0.00027938,2]
[356424512,1742433054129,-523.4,0.00027938,2]
[356424513,1742433054136,-500.0,0.00027938,2]
[356424514,1742433054146,-500.0,0.00027938,2]
[356424515,1742433054156,-614.9,0.00027938,2]
[356424516,1742433054166,-500.0,0.00027938,2]
[356424517,1742433054176,-795.71,0.00027938,2]
[356424518,1742433054187,-500.0,0.00027938,2]
[356424519,1742433054198,-500.0,0.00027938,2]
[356424520,1742433054208,-500.0,0.00027938,2]
[356424521,1742433054218,-500.0,0.00027938,2]
[356424522,1742433054228,-522.7,0.00027938,2]
[356424523,1742433054238,-500.0,0.00027938,2]
[356424524,1742433054249,-1095.0,0.00027938,2]
[356424525,1742433054260,-500.0,0.00027938,2]
[356424526,1742433054269,-500.0,0.00027938,2]
[356424527,1742433054280,-500.0,0.00027938,2]
[356424528,1742433054290,-500.0,0.00027938,2]
[356424529,1742433054299,-500.0,0.00027938,2]
[356424530,1742433054309,-500.0,0.00027938,2]
[356424531,1742433054319,-500.0,0.00027938,2]
[356424532,1742433054329,-500.0,0.00027938,2]
[356424533,1742433054338,-500.0,0.00027938,2]
[356424534,1742433054350,-500.0,0.00027938,2]
[356424535,1742433054360,-500.0,0.00027938,2]
[356424536,1742433054372,-500.0,0.00027938,2]
[356424537,1742433054382,-532.74,0.00027938,2]
[356424538,1742433054391,-813.8,0.00027938,2]
[356424539,1742433054401,-628.97,0.00027938,2]
[356424540,1742433054411,-500.0,0.00027938,2]
[356424541,1742433054421,-500.0,0.00027938,2]
[356424542,1742433054431,-500.0,0.00027938,2]
[356424543,1742433054442,-500.0,0.00027938,2]
[356424544,1742433054452,-500.0,0.00027938,2]
[356424545,1742433054462,-500.0,0.00027938,2]
[356424546,1742433054473,-727.68,0.00027938,2]
[356424547,1742433054483,-500.0,0.00027938,2]
[356424548,1742433054493,-763.23,0.00027938,2]
[356424549,1742433054504,-500.0,0.00027938,2]
[356424550,1742433054514,-550.49,0.00027938,2]
[356424551,1742433054523,-384.04332822,0.00027938,2]
[356424552,1742433054534,-291.04925592,0.00027938,2]
[356424553,1742433054544,-500.0,0.00027938,2]
[356424554,1742433054554,-500.0,0.00027938,2]
[356424555,1742433054564,-500.0,0.00027938,2]
[356424556,1742433054574,-899.58,0.00027938,2]
[356424557,1742433054584,-500.0,0.00027938,2]
[356424558,1742433054594,-706.56,0.00027938,2]
[356424559,1742433054604,-500.0,0.00027938,2]
[356424560,1742433054613,-500.0,0.00027938,2]
[356424561,1742433054625,-500.0,0.00027938,2]
[356424562,1742433054635,-700.96,0.00027938,2]
[356424563,1742433054645,-500.0,0.00027938,2]
[356424564,1742433054655,-500.0,0.00027938,2]
[356424565,1742433054666,-794.88,0.00027938,2]
[356424566,1742433054676,-526.5,0.00027938,2]
[356424567,1742433054686,-934.69,0.00027938,2]
[356424568,1742433054697,-1129.21,0.00027938,2]
[356424569,1742433054707,-500.0,0.00027938,2]
[356424570,1742433054717,-500.0,0.00027938,2]
[356424571,1742433054727,-726.14,0.00027938,2]
[356424572,1742433054737,-500.0,0.00027938,2]
[356424573,1742433054747,-1198.63,0.00027938,2]
[356424574,1742433054757,-500.0,0.00027938,2]
[356424575,1742433054767,-500.0,0.00027938,2]
[356424576,1742433054776,-500.0,0.00027938,2]
[356424577,1742433054787,-500.0,0.00027938,2]
[356424578,1742433054796,-500.0,0.00027938,2]
[356424579,1742433054807,-500.0,0.00027938,2]
[356424580,1742433054818,-500.0,0.00027938,2]
[356424581,1742433054829,-500.0,0.00027938,2]
[356424582,1742433054840,-500.0,0.00027938,2]
[356424583,1742433054850,-500.0,0.00027938,2]
[356424584,1742433054860,-500.0,0.00027938,2]
[356424585,1742433054870,-500.0,0.00027938,2]
[356424586,1742433054879,-500.0,0.00027938,2]
[356424587,1742433054889,-500.0,0.00027938,2]
[356424588,1742433054899,-500.0,0.00027938,2]
[356424589,1742433054909,-500.0,0.00027938,2]
[356424590,1742433054919,-500.0,0.00027938,2]
[356424591,1742433054928,-500.0,0.00027938,2]
[356424592,1742433054938,-500.0,0.00027938,2]
[356424593,1742433054949,-500.0,0.00027938,2]
[356424594,1742433054959,-500.0,0.00027938,2]
[356424595,1742433054969,-590.86,0.00027938,2]
[356424596,1742433054979,-500.0,0.00027938,2]
[356424597,1742433054988,-500.0,0.00027938,2]
[356424598,1742433054999,-1069.17,0.00027938,2]
[356424599,1742433055009,-500.0,0.00027938,2]
[356424600,1742433055019,-716.86,0.00027938,2]
[356424601,1742433055028,-500.0,0.00027938,2]
[356424602,1742433055038,-500.0,0.00027938,2]
[356424603,1742433055048,-857.58,0.00027938,2]
[356424604,1742433055058,-1016.15,0.00027938,2]
[356424605,1742433055068,-500.0,0.00027938,2]
[356424606,1742433055082,-500.0,0.00027938,2]
[356424607,1742433055091,-549.69187784,0.00027938,2]
[356424608,1742433055101,-500.0,0.00027938,2]
[356424609,1742433055111,-500.0,0.00027938,2]
[356424610,1742433055122,-500.0,0.00027938,2]
[356424611,1742433055131,-500.0,0.00027938,2]
[356424612,1742433055141,-951.68,0.00027938,2]
[356424613,1742433055152,-500.0,0.00027938,2]
[356424614,1742433055163,-500.0,0.00027938,2]
[356424615,1742433055173,-508.4,0.00027938,2]
[356424616,1742433055183,-687.98,0.00027938,2]
[356424617,1742433055193,-1068.94,0.00027938,2]
[356424618,1742433055203,-500.0,0.00027938,2]
[356424619,1742433055214,-500.0,0.00027938,2]
[356424620,1742433055224,-872.58,0.00027938,2]
[356424621,1742433055235,-500.0,0.00027938,2]
[356424622,1742433055463,-852.87,0.00027938,2]
[356424623,1742433055474,-500.0,0.00027938,2]
[356424624,1742433055484,-156.20218414,0.00027938,2]
[356424625,1742433055494,-500.0,0.00027938,2]
[356424626,1742433055503,-500.0,0.00027938,2]
[356424627,1742433055513,-500.0,0.00027938,2]
[356424628,1742433055523,-802.15,0.00027938,2]
[356424629,1742433055532,-500.0,0.00027938,2]
[356424630,1742433055542,-500.0,0.00027938,2]
[356424631,1742433055551,-500.0,0.00027938,2]
[356424632,1742433055561,-500.0,0.00027938,2]
[356424633,1742433055571,-500.0,0.00027938,2]
[356424634,1742433055581,-500.0,0.00027938,2]
[356424635,1742433055591,-500.0,0.00027938,2]
[356424636,1742433055600,-500.0,0.00027938,2]
[356424637,1742433055610,-500.0,0.00027938,2]
[356424638,1742433055619,-527.01,0.00027938,2]
[356424639,1742433055629,-500.0,0.00027938,2]
[356424640,1742433055639,-500.0,0.00027938,2]
[356424641,1742433055649,-726.12,0.00027938,2]
[356424642,1742433055658,-500.0,0.00027938,2]
[356424643,1742433055669,-500.0,0.00027938,2]
[356424644,1742433055678,-500.0,0.00027938,2]
[356424645,1742433055689,-500.0,0.00027938,2]
[356424646,1742433055700,-500.0,0.00027938,2]
[356424647,1742433055710,-500.0,0.00027938,2]
[356424648,1742433055720,-596.9,0.00027938,2]
[356424649,1742433055729,-999.81,0.00027938,2]
[356424650,1742433055738,-500.0,0.00027938,2]
[356424651,1742433055748,-500.0,0.00027938,2]
[356424652,1742433055758,-500.0,0.00027938,2]
[356424653,1742433055767,-500.0,0.00027938,2]
[356424654,1742433055776,-500.0,0.00027938,2]
[356424655,1742433055786,-1237.25,0.00027938,2]
[356424656,1742433055795,-500.0,0.00027938,2]
[356424657,1742433055805,-500.0,0.00027938,2]
[356424658,1742433055814,-701.16,0.00027938,2]
[356424659,1742433055824,-500.0,0.00027938,2]
[356424660,1742433055833,-759.7,0.00027938,2]
[356424661,1742433055843,-746.92,0.00027938,2]
[356424662,1742433055852,-500.0,0.00027938,2]
[356424663,1742433055862,-500.0,0.00027938,2]
[356424664,1742433055872,-545.51,0.00027938,2]
[356424665,1742433055881,-500.0,0.00027938,2]
[356424666,1742433055891,-612.73,0.00027938,2]
[356424667,1742433055900,-652.09,0.00027938,2]
[356424668,1742433055910,-771.62,0.00027938,2]
[356424669,1742433055920,-500.0,0.00027938,2]
[356424670,1742433055929,-583.37,0.00027938,2]
[356424671,1742433055939,-500.0,0.00027938,2]
[356424672,1742433055948,-905.58,0.00027938,2]
[356424673,1742433055958,-500.0,0.00027938,2]
[356424674,1742433055967,-642.02061353,0.00027938,2]
[356424675,1742433055977,-699.2,0.00027938,2]
[356424676,1742433055986,-500.0,0.00027938,2]
[356424677,1742433055995,-500.0,0.00027938,2]
[356424678,1742433056005,-500.0,0.00027938,2]
[356424679,1742433056015,-500.0,0.00027938,2]
[356424680,1742433056024,-512.39,0.00027938,2]
[356424681,1742433056034,-500.0,0.00027938,2]
[356424682,1742433056044,-500.0,0.00027938,2]
[356424683,1742433056053,-500.0,0.00027938,2]
[356424684,1742433056063,-500.0,0.00027938,2]
[356424685,1742433056073,-1000.0,0.00027938,2]
[356424686,1742433056086,-500.0,0.00027938,2]
[356424687,1742433056095,-500.0,0.00027938,2]
[356424688,1742433056105,-500.0,0.00027938,2]
[356424689,1742433056114,-500.0,0.00027938,2]
[356424690,1742433056124,-500.0,0.00027938,2]
[356424691,1742433056134,-857.86,0.00027938,2]
[356424692,1742433056143,-500.0,0.00027938,2]
[356424693,1742433056152,-500.0,0.00027938,2]
[356424694,1742433056167,-520.17,0.00027938,30]
[356424695,1742433056177,-615.72,0.00027938,2]
[356424696,1742433056186,-636.96,0.00027938,2]
[356424697,1742433056195,-565.74,0.00027938,2]
[356424698,1742433056205,-500.0,0.00027938,2]
[356424699,1742433056216,-500.0,0.00027938,2]
[356424700,1742433056226,-500.0,0.00027938,2]
[356424701,1742433056236,-500.0,0.00027938,2]
[356424702,1742433056245,-500.0,0.00027938,2]
[356424703,1742433056255,-500.0,0.00027938,2]
[356424704,1742433056265,-1276.63,0.00027938,2]
[356424705,1742433056275,-576.44,0.00027938,2]
[356424706,1742433056284,-500.0,0.00027938,2]
[356424707,1742433056294,-500.0,0.00027938,2]
[356424708,1742433056303,-580.39507286,0.00027939,2]
[356424709,1742433056313,-500.0,0.00027939,2]
[356424710,1742433056322,-500.0,0.00027939,2]
[356424711,1742433056332,-519.6696152,0.00027939,2]
[356424712,1742433056341,-500.0,0.00027939,2]
[356424713,1742433056352,-500.0,0.00027939,2]
[356424714,1742433056361,-500.0,0.00027939,2]
[356424715,1742433056370,-500.0,0.00027939,2]
[356424716,1742433056380,-500.0,0.00027939,2]
[356424717,1742433056389,-500.0,0.00027939,2]
[356424718,1742433056398,-500.0,0.00027939,2]
[356424719,1742433056407,-500.0,0.00027939,2]
[356424720,1742433056417,-500.0,0.00027939,2]
[356424721,1742433056427,-511.28,0.00027939,2]
[356424722,1742433056436,-500.0,0.00027939,2]
[356424723,1742433056447,-500.0,0.00027939,2]
[356424724,1742433056457,-500.0,0.00027939,2]
[356424725,1742433056467,-500.0,0.00027939,2]
[356424726,1742433056478,-544.43,0.00027939,2]
[356424727,1742433056487,-500.0,0.00027939,2]
[356424728,1742433056497,-538.83,0.00027939,2]
[356424729,1742433056507,-500.0,0.00027939,2]
[356424730,1742433056516,-500.0,0.00027939,2]
[356424731,1742433056525,-300.0,0.00027939,2]
[356424732,1742433056534,-500.0,0.00027939,2]
[356424733,1742433056544,-500.0,0.00027939,2]
[356424734,1742433056554,-500.0,0.00027939,2]
[356424735,1742433056564,-500.0,0.00027939,2]
[356424736,1742433056573,-1059.22,0.00027939,2]
[356424737,1742433056582,-500.0,0.00027939,2]
[356424738,1742433056592,-407.40343602,0.00027939,2]
[356424739,1742434075529,493.56025658,0.0001,2]
[356424740,1742434075552,3223.203753,0.0001,2]
[356424741,1742434075575,3223.203753,0.0001,2]
[356424742,1742434075598,3223.203753,0.0001,2]
[356424743,1742434075908,3223.203753,0.0001,2]
[356424744,1742434075933,3223.203753,0.0001,2]
[356424745,1742434075956,3223.203753,0.0001,2]
[356424746,1742434075979,1770.9824222,0.0001,2]
[356424747,1742434106834,197.33246286,9.828e-05,2]
[356424756,1742434116383,1254.88886794,0.00015,5]
[356424776,1742434232185,-348.0217607,0.00015,5]
[356424777,1742434232195,-4200.7283319,0.00022,2]
[356424778,1742434232271,-166.40933091,0.00022,2]
[356424779,1742434232282,-161.94909229,0.000229,2]
[356424780,1742434232292,-360.10055794,0.00023,15]
[356424781,1742434232301,-200.98,0.00024545,2]
[356424782,1742434232311,-179.94,0.00026421,2]
[356424783,1742434232321,-156.47,0.00026435,30]
[356424784,1742434232330,-150.0,0.00026466,7]
[356424785,1742434232340,-251.59,0.00026504,120]
[356424786,1742434232349,-1000.0,0.00026523,2]
[356424787,1742434232358,-150.0,0.00026652,2]
[356424788,1742434232367,-150.0,0.00026677,2]
[356424789,1742434232377,-150.0,0.0002672,2]
[356424790,1742434232386,-150.0,0.00026726,2]
[356424791,1742434232395,-856.39436938,0.0002673,2]
[356424792,1742434232678,-382.88827912,0.0002673,2]
[356424793,1742434232690,-5249.8473515,0.0002673,2]
[356424794,1742434232699,-179.94,0.00026751,2]
[356424795,1742434232709,-150.0,0.00026764,2]
[356424796,1742434232719,-200.98,0.00026809,2]
[356424797,1742434232728,-410.63,0.00026841,2]
[356424798,1742434232739,-150.0,0.00026843,2]
[356424799,1742434232748,-169.04,0.00026849,2]
[356424800,1742434232758,-538.27366828,0.000269,4]
[356424801,1742434232768,-150.0,0.0002693,2]
[356424802,1742434232777,-155.83,0.00026964,2]
[356424803,1742434232787,-150.0,0.00026966,2]
[356424804,1742434232796,-302.0,0.00026966,2]
[356424805,1742434232805,-150.0,0.00026977,2]
[356424806,1742434232815,-150.0,0.00026989,2]
[356424807,1742434232824,-165.0,0.00027,2]
[356424808,1742434232833,-150.0,0.00027064,2]
[356424809,1742434232842,-150.0,0.00027071,2]
[356424810,1742434232851,-179.94,0.00027081,2]
[356424811,1742434232861,-297.19927315,0.00027106,2]
[356424812,1742434232870,-150.0,0.00027189,2]
[356424813,1742434232880,-155.83,0.00027189,2]
[356424814,1742434232890,-429.0,0.00027233,2]
[356424815,1742434232899,-356.7109938,0.0002726,4]
[356424816,1742434232909,-150.0,0.00027373,2]
[356424817,1742434232918,-150.0,0.00027382,2]
[356424818,1742434232927,-179.94,0.00027411,2]
[356424819,1742434232937,-155.83,0.00027414,2]
[356424820,1742434232947,-658.32,0.00027416,2]
[356424821,1742434232956,-413.12,0.00027416,2]
[356424822,1742434232966,-150.0,0.0002745,2]
[356424823,1742434232975,-150.0,0.00027515,2]
[356424825,1742434232985,-150.0,0.00027548,2]
[356424827,1742434232997,-500.0,0.000276,10]
[356424829,1742434233006,-150.0,0.00027606,2]
[356424831,1742434233015,-155.83,0.00027638,2]
[356424833,1742434233025,-55683.51575023,0.0002766,2]
[356424836,1742434233038,-150.0,0.00027681,2]
[356424838,1742434233049,-1000.0,0.000277,10]
[356424840,1742434233059,-63.22296304,0.00027728,4]
[356424843,1742434233080,-475.05070511,0.00027728,4]
[356424844,1742434233089,-150.0,0.00027728,2]
[356424845,1742434233099,-68.84029489,0.0002773,2]
[356424846,1742434233111,-93.10879739,0.0002773,2]
[356424848,1742434233120,-182.89120261,0.0002773,2]
[356424852,1742434238216,-5637.98149739,0.0002773,2]
[356424853,1742434238226,-179.94,0.00027742,2]
[356424854,1742434238236,-768.7955,0.00027774,2]
[356424855,1742434238247,-272.4656,0.00027782,2]
[356424856,1742434238256,-163.19339896,0.00027782,2]
[356424857,1742434238266,-13110.375,0.00027783,2]
[356424858,1742434238275,-1000.0,0.00027783,2]
[356424859,1742434238285,-245.29,0.00027794,2]
[356424860,1742434238296,-926.446,0.000278,17]
[356424861,1742434238305,-1500.0,0.000278,10]
[356424862,1742434238315,-150.0,0.00027803,2]
[356424863,1742434238324,-302.0,0.00027813,2]
[356424864,1742434238333,-5120.6678,0.00027837,2]
[356424865,1742434238343,-1279.6874,0.00027837,2]
[356424866,1742434238352,-158.65368329,0.00027838,2]
[356424867,1742434238361,-155.83,0.00027863,2]
[356424868,1742434238370,-500.0,0.00027882,2]
[356424869,1742434238379,-500.0,0.00027882,2]
[356424870,1742434238388,-28.67412036,0.00027882,2]
[356424871,1742434238411,-471.32587964,0.00027882,2]
[356424872,1742434238420,-616.61,0.00027882,2]